bitfinex/quotes_SOLUSD_20251212
["timestamp","ask_amount","ask_price","bid_price","bid_amount"]
[1765503307799,0.7,137.18,137.16,27.95453252]
[1765503307987,0.7,137.18,137.17,13.0470912]
[1765503308191,0.7,137.18,137.17,20.337315]
[1765503309495,11.95398558,137.22,137.17,20.337315]
[1765503309496,19.24168463,137.22,137.17,20.337315]
[1765503309714,0.7,137.21,137.18,8.80994492]
[1765503310513,0.7,137.21,137.18,20.6639305]
[1765503310717,0.7,137.21,137.18,27.95354616]
[1765503310913,0.7,137.21,137.18,16.09956058]
[1765503311088,0.7,137.21,137.18,8.80994492]
[1765503311283,7.98810986,137.21,137.18,8.80994492]
[1765503311907,0.7,137.2,137.18,8.80994492]
[1765503314795,0.7,137.2,137.18,16.09961677]
[1765503316607,0.8,137.22,137.18,28.64360235]
[1765503316814,0.8,137.22,137.2,8.80994492]
[1765503316992,0.8,137.22,137.2,20.6639305]
[1765503319618,0.8,137.22,137.2,8.80994492]
[1765503320012,8.08774356,137.22,137.19,7.98]
[1765503320323,19.94172914,137.22,137.18,8.80994492]
[1765503320620,0.66,137.21,137.18,8.80994492]
[1765503321416,7.94826682,137.21,137.18,8.80994492]
[1765503321618,0.66,137.2,137.18,8.80994492]
[1765503322517,19.80279651,137.2,137.14,11.85398558]
[1765503322697,19.80279651,137.2,137.16,8.80994492]
[1765503322902,0.66,137.19,137.12,11.85398558]
[1765503323097,0.66,137.19,137.14,7.29140543]
[1765503323304,0.66,137.19,137.15,8.80994492]
[1765503323616,0.66,137.19,137.15,27.95513647]
[1765503323823,0.66,137.19,137.15,16.10115089]
[1765503324130,0.66,137.19,137.15,27.95513647]
[1765503324507,7.94944326,137.19,137.14,16.10162696]
[1765503324710,7.94944326,137.19,137.14,27.95561254]
[1765503325007,0.66,137.18,137.14,16.10162696]
[1765503325211,0.66,137.18,137.14,27.95561254]
[1765503326605,7.94982097,137.18,137.14,8.80994492]
[1765503326925,11.85398558,137.17,137.14,8.80994492]
[1765503327105,12.51398558,137.17,137.13,13.0470912]
[1765503327302,11.85398558,137.15,137.08,8.00494614]
[1765503327616,20.49398558,137.16,137.09,28.6439305]
[1765503327923,0.66,137.15,137.11,8.80994492]
[1765503328329,12.51398558,137.15,137.11,8.80994492]
[1765503328625,7.29181857,137.14,137.11,8.80994492]
[1765503328805,7.95181857,137.14,137.11,8.80994492]
[1765503329126,0.66,137.13,137.11,8.80994492]
[1765503330727,0.66,137.14,137.11,20.6639305]
[1765503331023,0.66,137.13,137.12,8.80994492]
[1765503331414,0.66,137.13,137.1,16.38803937]
[1765503331619,0.66,137.13,137.1,7.57809445]
[1765503331818,0.66,137.13,137.11,8.80994492]
[1765503332013,0.66,137.13,137.1,16.38803937]
[1765503332314,7.95130668,137.15,137.1,28.95202495]
[1765503332524,7.95210731,137.14,137.1,28.95202495]
[1765503332825,19.80609289,137.14,137.09,7.98]
[1765503333006,0.66,137.13,137.1,8.80994492]
[1765503335435,139.65093275,137.18,137.1,20.6639305]
[1765503335436,103.2,137.18,137.1,20.6639305]
[1765503335613,0.66,137.17,137.15,8.80994492]
[1765503337922,7.94933922,137.19,137.15,16.10114735]
[1765503338107,0.66,137.18,137.15,8.80994492]
[1765503338914,7.94999688,137.18,137.15,8.80994492]
[1765503339314,0.66,137.17,137.14,8.80994492]
[1765503339626,11.85398558,137.16,137.1,8.80994492]
[1765503339832,11.85398558,137.16,137.1,21.85703612]
[1765503340133,11.85398558,137.16,137.09,27.12811345]
[1765503340134,0.66,137.15,137.09,7.98]
[1765503340511,11.85398558,137.14,137.09,7.98]
[1765503340739,11.85398558,137.13,137.07,27.12907652]
[1765503341035,7.98,137.16,137.07,27.12907652]
[1765503341036,7.29341404,137.11,137.07,27.12907652]
[1765503341235,7.29341404,137.11,137.08,8.80994492]
[1765503341413,0.66,137.1,137.08,8.80994492]
[1765503343434,7.95417019,137.1,137.04,24.08691387]
[1765503343632,11.85398558,137.08,137.04,24.08691387]
[1765503344142,0.7,137.07,137.04,24.08691387]
[1765503344517,0.7,137.07,137.04,16.78994492]
[1765503344723,0.7,137.07,137.02,8.80994492]
[1765503344724,19.84974893,137.07,137.02,8.80994492]
[1765503344933,19.84974893,137.07,137.01,19.15233709]
[1765503344934,26.2346194,137.07,137.01,21.0270912]
[1765503345139,11.85398558,137.05,137.01,7.98]
[1765503345441,11.85398558,137.04,137.01,7.98]
[1765503345942,0.7,137.03,137.01,7.98]
[1765503346141,0.7,137.03,137.0,0.2]
[1765503346347,11.85398558,137.02,137.0,0.2]
[1765503346551,19.15260822,137.02,137.0,0.2]
[1765503346728,0.7,137.01,137.0,0.2]
[1765503347936,0.7,137.04,137.01,8.80994492]
[1765503348846,19.85140342,137.04,137.0,8.18]
[1765503349235,0.7,137.03,137.0,8.18]
[1765503349548,12.55398558,137.03,137.0,8.18]
[1765503349903,12.55398558,137.03,137.0,0.2]
[1765503349904,11.85398558,137.02,137.0,0.2]
[1765503350147,0.7,137.02,137.0,0.2]
[1765503350322,0.7,137.01,137.0,0.2]
[1765503352149,7.29835202,137.02,137.0,0.2]
[1765503352150,0.7,137.02,137.0,0.2]
[1765503352735,8.68,137.05,137.0,16.99815874]
[1765503352957,0.7,137.04,137.0,24.97815874]
[1765503353344,0.7,137.04,137.0,32.27739884]
[1765503354740,15.97675175,137.05,137.01,0.68]
[1765503354939,0.7,137.04,137.0,24.96918502]
[1765503355148,15.97675175,137.05,137.01,0.68]
[1765503355342,0.7,137.07,137.03,7.30821382]
[1765503355543,7.30821382,137.09,137.04,16.11815874]
[1765503355746,0.7,137.09,137.05,7.30821382]
[1765503355956,7.99462076,137.09,137.05,7.30821382]
[1765503356160,0.7,137.09,137.06,16.11815874]
[1765503356339,15.97357832,137.11,137.07,8.80994492]
[1765503356652,0.7,137.1,137.07,8.80994492]
[1765503357254,7.99401679,137.1,137.07,8.80994492]
[1765503357938,15.97392255,137.11,137.07,23.41369474]
[1765503358345,15.97392255,137.11,137.07,24.09369474]
[1765503359870,7.99392255,137.11,137.07,24.09369474]
[1765503360736,0.7,137.11,137.07,24.09369474]
[1765503360955,0.7,137.11,137.07,16.78548092]
[1765503361133,0.7,137.11,137.07,24.09369474]
[1765503363046,7.99364756,137.11,137.07,8.80994492]
[1765503363642,7.99364756,137.11,137.07,9.48994492]
[1765503366445,0.7,137.1,137.07,8.80994492]
[1765503367068,7.29075532,137.16,137.09,29.16524994]
[1765503367253,7.29075532,137.16,137.13,8.80994492]
[1765503367254,0.7,137.15,137.13,8.80994492]
[1765503367658,0.7,137.15,137.12,8.80994492]
[1765503368860,0.7,137.16,137.13,0.68]
[1765503369171,8.00821382,137.15,137.11,8.80994492]
[1765503369565,0.7,137.14,137.11,8.80994492]
[1765503370362,7.9920937,137.14,137.11,8.80994492]
[1765503370762,0.7,137.13,137.11,8.80994492]
[1765503371271,0.7,137.13,137.1,8.80994492]
[1765503371851,0.7,137.13,137.08,15.28821382]
[1765503371852,8.00821382,137.13,137.08,15.28821382]
[1765503372058,0.7,137.12,137.09,8.80994492]
[1765503372873,7.99312467,137.12,137.09,8.80994492]
[1765503373069,0.68,137.19,137.14,8.80994492]
[1765503373260,0.68,137.19,137.15,8.80994492]
[1765503373261,7.98821382,137.19,137.15,8.80994492]
[1765503373573,0.68,137.19,137.14,16.11815874]
[1765503373754,0.68,137.18,137.14,16.11815874]
[1765503374154,7.96970247,137.18,137.14,23.40993721]
[1765503374557,7.96970247,137.18,137.14,24.06993721]
[1765503375471,0.68,137.17,137.14,16.10172339]
[1765503377667,0.68,137.17,137.14,23.40993721]
[1765503378150,7.28916101,137.19,137.14,24.11993721]
[1765503378355,0.68,137.18,137.14,24.11993721]
[1765503378573,0.68,137.18,137.14,23.40993721]
[1765503379378,7.96982958,137.18,137.14,23.40993721]
[1765503379574,7.96982958,137.18,137.14,16.10172339]
[1765503379900,0.68,137.17,137.14,23.40993721]
[1765503380278,0.68,137.17,137.14,8.80994492]
[1765503380975,0.68,137.17,137.13,13.0470912]
[1765503381174,7.98821382,137.17,137.12,8.80994492]
[1765503381572,7.97075532,137.16,137.12,8.80994492]
[1765503381963,0.68,137.15,137.12,16.10280725]
[1765503383168,0.68,137.15,137.12,23.41102107]
[1765503383478,0.68,137.15,137.12,24.12102107]
[1765503385385,0.68,137.15,137.12,23.41102107]
[1765503385885,0.68,137.15,137.12,16.10280725]
[1765503386077,7.97131883,137.15,137.11,20.35530502]
[1765503386259,7.97131883,137.15,137.11,13.0470912]
[1765503386463,0.68,137.14,137.11,13.0470912]
[1765503387178,7.97203013,137.14,137.11,13.0470912]
[1765503387676,7.98821382,137.13,137.09,8.80994492]
[1765503387882,0.68,137.13,137.09,8.80994492]
[1765503388078,0.68,137.12,137.09,8.80994492]
[1765503388290,0.68,137.12,137.08,7.30821382]
[1765503388473,0.68,137.12,137.08,8.80994492]
[1765503389283,7.29341404,137.11,137.08,8.80994492]
[1765503389790,7.97341404,137.11,137.08,8.80994492]
[1765503390691,0.68,137.1,137.08,8.80994492]
[1765503391882,0.68,137.11,137.08,8.80994492]
[1765503392085,0.68,137.11,137.08,9.51994492]
[1765503392278,0.68,137.11,137.08,8.80994492]
[1765503393194,7.97347312,137.11,137.08,8.80994492]
[1765503399500,3.54074039,137.1,137.08,8.80994492]
[1765503399707,2.86074039,137.09,137.02,8.80994492]
[1765503399996,2.86074039,137.09,137.01,3.57074039]
[1765503399997,2.86074039,137.05,137.01,7.98]
[1765503400181,2.86074039,137.04,137.0,0.91]
[1765503400383,2.86074039,137.03,137.0,9.00994492]
[1765503400781,3.54074039,137.03,137.0,9.00994492]
[1765503400981,0.68,137.02,137.0,9.00994492]
[1765503401805,0.68,137.02,137.0,0.2]
[1765503406304,0.68,137.02,137.0,9.00994492]
[1765503409181,7.29777648,137.03,137.0,9.66994492]
[1765503409382,10.86851687,137.03,137.0,9.66994492]
[1765503409881,0.71,137.03,137.0,9.66994492]
[1765503410085,0.71,137.03,137.0,9.00994492]
[1765503410985,8.00772554,137.03,137.0,9.00994492]
[1765503411306,8.00772554,137.03,137.0,0.2]
[1765503412305,12.4828056,137.03,137.0,0.2]
[1765503412611,5.18508006,137.02,137.0,0.2]
[1765503412989,0.71,137.02,137.0,0.2]
[1765503413481,8.00873483,137.02,137.0,0.2]
[1765503413680,0.71,137.02,137.0,0.2]
[1765503414114,0.71,137.01,137.0,0.2]
[1765503414803,11.77288606,137.03,137.0,0.2]
[1765503414804,8.007806,137.03,137.0,0.2]
[1765503414986,0.71,137.02,137.0,0.2]
[1765503417111,0.71,137.02,137.0,9.00994492]
[1765503420507,11.77288606,137.03,137.0,9.00994492]
[1765503420716,0.71,137.05,137.02,8.80994492]
[1765503421289,103.2,137.09,137.04,8.80994492]
[1765503421490,108.38508006,137.09,137.04,8.80994492]
[1765503421686,0.71,137.08,137.05,0.66]
[1765503421890,0.71,137.08,137.06,8.80994492]
[1765503422089,0.71,137.11,137.06,8.80994492]
[1765503422391,4.47508006,137.07,137.03,21.0470912]
[1765503422709,7.29660707,137.05,137.03,13.0470912]
[1765503423115,8.00660707,137.05,137.03,13.0470912]
[1765503423489,0.71,137.05,137.03,13.0470912]
[1765503423711,11.77129253,137.06,137.03,13.0470912]
[1765503424010,0.71,137.06,137.03,13.0470912]
[1765503424717,12.48078603,137.07,137.04,8.80994492]
[1765503425015,0.71,137.06,137.04,8.80994492]
[1765503425813,7.29570597,137.07,137.04,8.80994492]
[1765503426014,0.71,137.06,137.04,8.80994492]
[1765503427106,13.18508006,137.09,137.06,8.80994492]
[1765503427409,8.71,137.09,137.06,0.66]
[1765503427619,13.18508006,137.09,137.06,0.66]
[1765503428206,13.18508006,137.09,137.04,16.10686224]
[1765503428429,5.18508006,137.08,137.06,8.80994492]
[1765503428718,4.47508006,137.07,137.01,15.95857648]
[1765503428920,4.47508006,137.04,137.0,9.00994492]
[1765503429130,4.47508006,137.04,137.01,13.0470912]
[1765503429300,8.69,137.06,137.0,0.2]
[1765503429301,4.47508006,137.02,137.0,0.2]
[1765503429813,0.71,137.01,137.0,0.2]
[1765503430499,5.18508006,137.01,137.0,0.2]
[1765503430695,19.88636475,137.01,137.0,0.2]
[1765503434597,8.00873731,137.01,137.0,0.2]
[1765503434805,7.29802771,137.03,137.0,0.9]
[1765503435005,0.66,137.05,137.01,8.80994492]
[1765503435200,7.29672859,137.05,137.01,9.51994492]
[1765503435404,7.29672859,137.05,137.02,0.71]
[1765503436298,8.01672859,137.05,137.01,8.80994492]
[1765503436498,7.29672859,137.05,137.02,0.71]
[1765503436710,15.2962154,137.06,137.03,8.80994492]
[1765503436924,19.17326177,137.07,137.03,8.80994492]
[1765503437124,0.72,137.06,137.03,8.80994492]
[1765503438107,19.17326177,137.07,137.04,0.71]
[1765503438824,0.72,137.06,137.03,9.51994492]
[1765503439149,8.01563433,137.07,137.04,0.71]
[1765503440007,19.89326177,137.07,137.04,0.71]
[1765503440522,12.59762744,137.06,137.02,8.80994492]
[1765503440711,12.59762744,137.06,137.02,9.51994492]
[1765503440912,12.59762744,137.06,137.02,16.81813613]
[1765503441106,19.89326177,137.07,137.03,0.71]
[1765503441506,0.72,137.06,137.03,0.71]
[1765503442325,19.89326177,137.07,137.03,0.71]
[1765503442905,12.59762744,137.06,137.02,8.80994492]
[1765503443125,12.59762744,137.06,137.03,0.71]
[1765503443327,0.72,137.06,137.03,0.71]
[1765503443522,12.59762744,137.06,137.02,8.80994492]
[1765503443726,12.59762744,137.06,137.02,9.51994492]
[1765503444437,8.01613575,137.06,137.03,0.71]
[1765503445438,7.29571839,137.07,137.03,0.71]
[1765503445839,8.01571839,137.07,137.03,0.71]
[1765503446136,19.89334583,137.07,137.03,0.71]
[1765503450827,12.48880527,137.07,137.03,0.71]
[1765503451340,8.01571839,137.07,137.04,8.80994492]
[1765503451520,12.47308688,137.08,137.04,8.80994492]
[1765503451521,8.0,137.08,137.04,8.80994492]
[1765503451848,0.72,137.08,137.06,8.80994492]
[1765503453443,12.48790235,137.09,137.06,8.80994492]
[1765503453618,12.48790235,137.09,137.06,9.51994492]
[1765503453619,8.01481547,137.09,137.06,9.51994492]
[1765503459155,12.48790235,137.09,137.06,9.51994492]
[1765503460242,8.01481547,137.09,137.06,8.80994492]
[1765503460749,8.01481547,137.09,137.06,9.51994492]
[1765503461548,12.48790235,137.09,137.06,9.51994492]
[1765503462249,12.48790235,137.09,137.06,8.80994492]
[1765503462429,12.48790235,137.09,137.06,9.51994492]
[1765503463323,12.48790235,137.09,137.06,8.80994492]
[1765503463530,12.48790235,137.09,137.06,9.46994492]
[1765503464446,0.68,137.08,137.06,8.80994492]
[1765503464625,4.47308688,137.07,137.03,0.28432314]
[1765503464949,8.66,137.08,137.04,8.80994492]
[1765503465149,5.15308688,137.07,137.04,9.46994492]
[1765503465644,12.44892509,137.07,137.04,9.46994492]
[1765503466352,7.98,137.08,137.06,8.80994492]
[1765503466565,8.66,137.08,137.06,8.80994492]
[1765503466927,15.95506228,137.08,137.06,8.80994492]
[1765503467128,5.15308688,137.07,137.03,8.80994492]
[1765503467348,4.47308688,137.06,137.03,8.80994492]
[1765503467630,7.97623948,137.06,137.03,8.80994492]
[1765503467845,12.44932636,137.06,137.03,8.80994492]
[1765503468632,0.68,137.05,137.03,8.80994492]
[1765503469251,11.76932636,137.06,137.03,9.46994492]
[1765503469561,11.76879481,137.07,137.04,0.66]
[1765503469853,12.44879481,137.07,137.04,0.66]
[1765503470730,3.54333159,137.06,137.02,16.7679785]
[1765503470930,3.54333159,137.06,137.03,0.66]
[1765503471629,10.83903952,137.07,137.03,0.66]
[1765503471830,7.29570793,137.07,137.03,7.95753787]
[1765503472037,7.29570793,137.07,137.04,0.66]
[1765503472253,7.97570793,137.07,137.04,0.66]
[1765503472664,7.97489033,137.09,137.05,8.80994492]
[1765503472861,2.86333159,137.08,137.05,8.80994492]
[1765503473163,3.54333159,137.08,137.05,8.80994492]
[1765503473364,3.54333159,137.08,137.03,15.95766585]
[1765503473365,3.54333159,137.07,137.03,8.0]
[1765503473555,2.86333159,137.06,137.02,8.80994492]
[1765503473774,3.54333159,137.06,137.02,9.46994492]
[1765503473940,2.86333159,137.04,137.0,9.00994492]
[1765503474252,2.86333159,137.02,137.0,9.00994492]
[1765503474744,0.68,137.01,137.0,9.00994492]
[1765503475165,10.84190486,137.02,137.0,9.00994492]
[1765503476174,7.97857327,137.02,137.0,9.00994492]
[1765503476544,13.0470912,137.07,137.0,9.00994492]
[1765503476545,0.68,137.07,137.01,13.7070912]
[1765503476750,2.86333159,137.08,137.02,11.67327651]
[1765503476967,2.86333159,137.08,137.03,2.86333159]
[1765503477170,3.54333159,137.08,137.03,3.52333159]
[1765503477352,0.68,137.08,137.05,8.80994492]
[1765503477746,0.68,137.08,137.05,9.46994492]
[1765503478471,18.8179236,137.09,137.05,9.46994492]
[1765503478882,0.68,137.08,137.05,9.46994492]
[1765503479255,18.8179236,137.09,137.05,9.46994492]
[1765503480148,18.1379236,137.09,137.05,9.46994492]
[1765503480568,18.8179236,137.09,137.07,8.80994492]
[1765503480761,3.54333159,137.09,137.07,8.80994492]
[1765503481478,0.68,137.09,137.07,8.80994492]
[1765503481674,0.68,137.09,137.05,16.76649875]
[1765503482670,0.68,137.09,137.07,8.80994492]
[1765503482866,3.54333159,137.09,137.07,8.80994492]
[1765503483546,3.54333159,137.09,137.05,16.76649875]
[1765503483748,3.54333159,137.09,137.07,8.80994492]
[1765503484159,0.68,137.08,137.05,16.76649875]
[1765503484360,3.54333159,137.08,137.05,16.76649875]
[1765503485172,3.54333159,137.07,137.05,8.80994492]
[1765503485374,3.54333159,137.07,137.04,8.80994492]
[1765503485675,3.54333159,137.08,137.04,16.10704255]
[1765503485861,3.54333159,137.08,137.05,0.66]
[1765503486674,3.54333159,137.08,137.04,16.76704255]
[1765503486878,3.54333159,137.08,137.05,0.66]
[1765503487179,3.54333159,137.08,137.04,16.76704255]
[1765503487366,3.54333159,137.08,137.05,0.66]
[1765503488676,3.54333159,137.08,137.04,29.15413375]
[1765503488865,3.54333159,137.08,137.04,29.81413375]
[1765503489454,3.54333159,137.08,137.05,0.66]
[1765503489657,10.15793031,137.09,137.04,21.85703612]
[1765503489960,0.68,137.07,137.04,21.85703612]
[1765503490675,0.68,137.07,137.04,22.51703612]
[1765503490892,0.68,137.09,137.05,0.66]
[1765503491360,3.54333159,137.09,137.05,0.66]
[1765503491963,2.86333159,137.09,137.05,7.95655559]
[1765503492171,3.54333159,137.09,137.05,7.95655559]
[1765503492559,0.68,137.09,137.05,7.95655559]
[1765503492877,3.54333159,137.09,137.05,7.98655559]
[1765503493078,2.86333159,137.08,137.05,7.98655559]
[1765503493255,3.54333159,137.08,137.05,16.79650051]
[1765503494272,0.68,137.08,137.05,16.79650051]
[1765503494478,0.68,137.09,137.07,8.80994492]
[1765503494667,3.54333159,137.09,137.07,8.80994492]
[1765503495283,7.98,137.11,137.07,8.80994492]
[1765503495472,7.98,137.11,137.09,8.80994492]
[1765503495672,11.54333159,137.11,137.09,8.80994492]
[1765503495876,0.7,137.1,137.09,8.80994492]
[1765503496381,3.56333159,137.1,137.09,8.80994492]
[1765503496581,3.56333159,137.1,137.07,13.0470912]
[1765503496582,10.8573105,137.1,137.07,13.0470912]
[1765503496766,2.86333159,137.08,137.04,21.89701105]
[1765503497081,2.86333159,137.06,137.05,13.0470912]
[1765503497468,3.56333159,137.06,137.05,13.0470912]
[1765503497781,3.56333159,137.06,137.05,21.85703612]
[1765503499882,0.7,137.06,137.05,21.85703612]
[1765503500062,0.7,137.07,137.06,8.80994492]
[1765503500264,3.56333159,137.07,137.06,8.80994492]
[1765503503384,7.29408875,137.1,137.06,9.50994492]
[1765503503574,0.7,137.1,137.08,8.80994492]
[1765503503881,0.7,137.12,137.1,8.80994492]
[1765503504458,3.56333159,137.12,137.1,8.80994492]
[1765503504659,0.7,137.12,137.1,8.80994492]
[1765503505774,3.56333159,137.13,137.1,8.80994492]
[1765503506162,2.86333159,137.13,137.1,8.80994492]
[1765503506361,0.7,137.12,137.1,8.80994492]
[1765503507789,3.56333159,137.12,137.09,8.80994492]
[1765503509892,3.56333159,137.12,137.09,16.10438295]
[1765503510297,0.7,137.12,137.09,16.80438295]
[1765503510498,3.56333159,137.12,137.09,16.80438295]
[1765503510977,11.54333159,137.14,137.1,0.7]
[1765503511175,11.54333159,137.14,137.12,8.80994492]
[1765503511799,8.68,137.16,137.12,9.50994492]
[1765503511996,11.54333159,137.16,137.12,9.50994492]
[1765503512300,3.56333159,137.15,137.12,9.50994492]
[1765503512477,3.56333159,137.15,137.12,8.80994492]
[1765503512676,0.7,137.14,137.12,8.80994492]
[1765503513007,7.98,137.16,137.13,0.7]
[1765503513196,3.56333159,137.15,137.12,8.80994492]
[1765503513376,3.56333159,137.14,137.12,8.80994492]
[1765503513765,7.98,137.16,137.12,8.80994492]
[1765503514074,2.86333159,137.13,137.09,8.80994492]
[1765503514281,2.86333159,137.12,137.09,8.80994492]
[1765503514474,2.86333159,137.11,137.09,8.80994492]
[1765503516902,7.98,137.13,137.08,8.80994492]
[1765503516903,3.56333159,137.1,137.08,8.80994492]
[1765503517071,3.56333159,137.1,137.08,16.10486823]
[1765503517273,2.86333159,137.1,137.08,8.80994492]
[1765503520104,0.7,137.09,137.08,8.80994492]
[1765503520610,2.86333159,137.09,137.08,8.80994492]
[1765503521099,3.56333159,137.09,137.08,8.80994492]
[1765503521606,2.86333159,137.09,137.08,8.80994492]
[1765503522805,3.56333159,137.1,137.08,8.80994492]
[1765503523780,2.86333159,137.1,137.08,8.80994492]
[1765503523974,7.29288429,137.12,137.08,8.80994492]
[1765503523975,2.86333159,137.11,137.08,9.48994492]
[1765503524202,3.56333159,137.11,137.08,8.80994492]
[1765503524503,0.7,137.1,137.08,8.80994492]
[1765503524704,3.56333159,137.11,137.08,8.80994492]
[1765503524906,2.86333159,137.11,137.08,8.80994492]
[1765503525093,2.86333159,137.11,137.08,16.78493452]
[1765503525882,3.56333159,137.11,137.08,16.78493452]
[1765503527411,7.98,137.13,137.08,16.78493452]
[1765503527582,2.86333159,137.11,137.08,16.78493452]
[1765503529891,0.7,137.12,137.08,16.78493452]
[1765503530212,0.7,137.12,137.1,8.80994492]
[1765503530213,2.86333159,137.11,137.1,8.80994492]
[1765503530413,3.56333159,137.12,137.1,8.80994492]
[1765503531811,2.86333159,137.12,137.1,8.80994492]
[1765503532017,0.7,137.11,137.1,8.80994492]
[1765503532508,2.86333159,137.11,137.1,8.80994492]
[1765503532692,4.47052045,137.11,137.1,8.80994492]
[1765503534510,7.98,137.13,137.09,7.2942938]
[1765503534718,13.15052045,137.13,137.09,8.80994492]
[1765503534913,12.45052045,137.13,137.09,0.68]
[1765503535096,0.7,137.12,137.09,0.68]
[1765503536411,0.7,137.12,137.1,7.2939423]
[1765503537010,5.17052045,137.12,137.1,7.2939423]
[1765503537545,15.2709468,137.16,137.1,7.2939423]
[1765503537716,4.47052045,137.12,137.08,0.68]
[1765503537920,0.7,137.15,137.08,8.80994492]
[1765503537921,4.47052045,137.1,137.08,8.80994492]
[1765503538417,5.17052045,137.1,137.08,8.80994492]
[1765503538815,4.47052045,137.1,137.08,16.78491905]
[1765503539921,5.17052045,137.11,137.08,16.78491905]
[1765503540819,7.29147359,137.15,137.08,16.10491905]
[1765503541119,4.47052045,137.12,137.09,0.68]
[1765503541487,5.17052045,137.12,137.09,0.68]
[1765503541901,4.47052045,137.12,137.09,7.97428214]
[1765503542116,5.17052045,137.12,137.09,7.97428214]
[1765503544319,5.17052045,137.11,137.08,16.10482139]
[1765503544521,0.7,137.11,137.08,16.10482139]
[1765503544722,7.2918736,137.14,137.09,7.97441188]
[1765503544910,4.47052045,137.11,137.08,16.10484457]
[1765503545227,4.47052045,137.09,137.08,8.80994492]
[1765503545598,0.7,137.1,137.08,8.80994492]
[1765503545805,4.47052045,137.1,137.08,9.48994492]
[1765503546000,5.17052045,137.1,137.08,16.10495349]
[1765503547019,0.7,137.11,137.08,16.78495349]
[1765503547213,4.47052045,137.1,137.08,16.10495349]
[1765503547410,11.7645911,137.1,137.08,8.80994492]
[1765503547615,11.7645911,137.1,137.04,7.2918736]
[1765503547616,5.17052045,137.09,137.04,7.2918736]
[1765503547820,4.47052045,137.05,137.04,7.2918736]
[1765503548026,4.47052045,137.05,137.03,20.34457836]
[1765503548219,4.47052045,137.05,137.04,8.80994492]
[1765503549349,4.47052045,137.06,137.04,16.10695117]
[1765503549541,0.7,137.07,137.04,16.10695117]
[1765503549707,4.47052045,137.06,137.04,16.10695117]
[1765503550005,4.47052045,137.06,137.04,16.78695117]
[1765503550205,5.17052045,137.07,137.04,16.78695117]
[1765503552337,0.7,137.07,137.04,7.97700625]
[1765503552509,5.17052045,137.07,137.04,16.78695117]
[1765503555648,7.29352533,137.11,137.05,8.80994492]
[1765503555818,4.47052045,137.09,137.05,9.46994492]
[1765503556221,0.69,137.08,137.05,9.46994492]
[1765503556723,0.69,137.08,137.06,7.29607471]
[1765503558015,4.47052045,137.09,137.06,7.95607471]
[1765503558421,5.16052045,137.09,137.06,7.95607471]
[1765503561332,0.69,137.09,137.06,7.95607471]
[1765503561633,5.16052045,137.09,137.06,7.95607471]
[1765503562153,0.69,137.09,137.06,7.95607471]
[1765503562329,5.16052045,137.09,137.06,7.95607471]
[1765503562644,4.47052045,137.1,137.07,9.46994492]
[1765503562842,5.16052045,137.11,137.07,9.46994492]
[1765503563038,4.47052045,137.11,137.08,0.66]
[1765503565330,5.16052045,137.11,137.08,7.29471152]
[1765503565534,4.47052045,137.1,137.08,7.29471152]
[1765503565940,0.69,137.11,137.08,7.29471152]
[1765503566143,5.16052045,137.11,137.08,7.29471152]
[1765503566641,0.69,137.1,137.08,7.29471152]
[1765503570459,5.16052045,137.1,137.08,7.95471152]
[1765503570832,0.69,137.09,137.08,16.10465644]
[1765503571156,0.69,137.09,137.08,8.80994492]
[1765503573353,5.16052045,137.09,137.08,8.80994492]
[1765503574149,4.47052045,137.09,137.08,8.80994492]
[1765503574458,5.16052045,137.09,137.08,8.80994492]
[1765503576482,12.45503316,137.09,137.03,16.10725566]
[1765503576665,4.47052045,137.07,137.03,16.10725566]
[1765503577065,0.69,137.06,137.03,16.76725566]
[1765503579567,0.69,137.08,137.05,8.80994492]
[1765503579886,5.16052045,137.08,137.05,8.80994492]
[1765503580283,0.69,137.07,137.05,8.80994492]
[1765503580467,0.69,137.07,137.05,16.10643247]
[1765503580972,5.16052045,137.07,137.05,16.10643247]
[1765503581568,5.16052045,137.07,137.05,8.80994492]
[1765503582190,4.47052045,137.06,137.05,8.80994492]
[1765503582687,5.16052045,137.07,137.05,8.80994492]
[1765503582885,5.16052045,137.07,137.04,7.29700243]
[1765503583073,0.68,137.06,137.05,8.80994492]